bitfinex/quotes_SOLUSD_20241210
["timestamp","ask_amount","ask_price","bid_price","bid_amount"]
[1733867401618,23.902374,214.41,214.35,14.37066606]
[1733867401816,4.9032,214.46,214.37,14.37066606]
[1733867401985,4.9032,214.46,214.38,14.37066606]
[1733867403104,4.9032,214.46,214.33,11.6642]
[1733867403105,0.25098,214.45,214.32,14.37066606]
[1733867403301,0.25098,214.45,214.34,14.37066606]
[1733867403907,0.25098,214.45,214.32,14.37066606]
[1733867404105,0.12549,214.41,214.31,14.37066606]
[1733867404414,0.12549,214.41,214.3,14.37066606]
[1733867404586,0.12549,214.41,214.31,14.37066606]
[1733867404786,20.0,214.44,214.34,14.37066606]
[1733867405106,0.12549,214.43,214.33,14.37066606]
[1733867405310,0.12549,214.44,214.34,14.37066606]
[1733867405790,0.12549,214.44,214.35,14.37066606]
[1733867406121,0.12549,214.44,214.34,0.69955417]
[1733867406422,0.12549,214.44,214.32,14.37066606]
[1733867406590,0.25098,214.41,214.3,14.37066606]
[1733867406785,0.12549,214.4,214.28,14.37066606]
[1733867407127,24.027864,214.41,214.17,40.35359978]
[1733867407128,0.12549,214.33,214.23,14.37066606]
[1733867407906,0.12549,214.33,214.21,14.37066606]
[1733867408409,0.12549,214.33,214.2,14.37066606]
[1733867408613,0.12549,214.33,214.23,14.37066606]
[1733867409902,0.12549,214.33,214.24,14.37066606]
[1733867410104,4.9032,214.37,214.29,14.37066606]
[1733867410501,0.25098,214.36,214.27,14.37066606]
[1733867410813,0.25098,214.36,214.24,14.37066606]
[1733867411301,0.12549,214.35,214.24,14.37066606]
[1733867411708,0.12549,214.35,214.25,14.37066606]
[1733867412295,4.9032,214.37,214.27,14.37066606]
[1733867412736,4.9032,214.37,214.27,326.37066606]
[1733867413516,0.12549,214.35,214.25,14.37066606]
[1733867413694,0.12549,214.35,214.26,14.37066606]
[1733867415012,23.902374,214.32,214.21,14.37066606]
[1733867415708,23.902374,214.32,214.24,14.37066606]
[1733867415929,23.902374,214.32,214.26,14.37066606]
[1733867416425,23.902374,214.32,214.27,14.37066606]
[1733867416630,4.9032,214.42,214.31,14.37066606]
[1733867416800,4.9032,214.42,214.33,14.37066606]
[1733867417000,4.9032,214.42,214.32,14.37066606]
[1733867417199,4.9032,214.42,214.31,14.37066606]
[1733867417699,4.9032,214.42,214.3,14.37066606]
[1733867418115,4.9032,214.42,214.28,14.37066606]
[1733867418305,21.521,214.39,214.28,14.37066606]
[1733867418624,23.902374,214.38,214.28,14.37066606]
[1733867418990,23.902374,214.38,214.29,14.37066606]
[1733867419197,23.902374,214.38,214.3,14.37066606]
[1733867419397,23.902374,214.38,214.28,34.37066606]
[1733867419817,23.902374,214.38,214.29,14.37066606]
[1733867421512,23.902374,214.38,214.26,14.37066606]
[1733867421721,0.12549,214.36,214.27,14.37066606]
[1733867422101,0.12549,214.37,214.27,14.37066606]
[1733867422303,0.37647,214.37,214.26,14.37066606]
[1733867422630,0.12549,214.37,214.26,14.37066606]
[1733867422791,0.12549,214.37,214.27,14.37066606]
[1733867423503,0.12549,214.37,214.29,14.37066606]
[1733867423818,0.12549,214.37,214.29,326.37066606]
[1733867424001,0.12549,214.37,214.29,312.0]
[1733867424207,0.12549,214.37,214.26,14.37066606]
[1733867424403,0.37647,214.37,214.25,14.37066606]
[1733867424604,23.902374,214.3,214.21,14.37066606]
[1733867425105,1.76689,214.29,214.2,14.37066606]
[1733867425314,23.902374,214.28,214.16,14.37066606]
[1733867425635,0.12549,214.26,214.15,18.69536]
[1733867425921,1.6414,214.29,214.13,14.37066606]
[1733867425922,23.902374,214.24,214.13,14.37066606]
[1733867426095,23.902374,214.24,214.14,14.37066606]
[1733867427305,23.902374,214.24,214.14,335.03146331]
[1733867428825,23.902374,214.24,214.16,23.03146331]
[1733867429420,23.902374,214.24,214.18,23.03146331]
[1733867429627,1.6414,214.29,214.2,23.03146331]
[1733867429807,1.6414,214.29,214.23,23.03146331]
[1733867430326,1.6414,214.29,214.22,23.03146331]
[1733867431333,4.9032,214.32,214.26,23.03146331]
[1733867431505,4.9032,214.32,214.24,23.03146331]
[1733867431906,1.516,214.34,214.25,23.03146331]
[1733867432131,1.516,214.34,214.24,23.03146331]
[1733867432325,1.516,214.34,214.23,23.03146331]
[1733867432534,1.516,214.34,214.23,335.03146331]
[1733867432845,23.902374,214.33,214.23,335.03146331]
[1733867433028,23.902374,214.33,214.23,312.0]
[1733867433415,23.902374,214.33,214.23,335.03146331]
[1733867433616,23.902374,214.33,214.24,23.03146331]
[1733867433816,23.902374,214.33,214.25,23.03146331]
[1733867434458,1.516,214.34,214.29,23.03146331]
[1733867434627,1.516,214.4,214.31,23.03146331]
[1733867434808,1.516,214.4,214.3,23.03146331]
[1733867435120,1.516,214.4,214.31,23.03146331]
[1733867435509,1.516,214.4,214.34,23.03146331]
[1733867435716,1.516,214.4,214.3,20.0]
[1733867435717,1.516,214.5,214.36,23.03146331]
[1733867435914,0.25098,214.49,214.36,23.03146331]
[1733867436636,1.516,214.5,214.36,23.03146331]
[1733867436809,0.25098,214.49,214.37,23.03146331]
[1733867437013,5.15418,214.46,214.27,23.03146331]
[1733867437333,0.25098,214.42,214.26,23.03146331]
[1733867437638,0.25098,214.42,214.26,335.03146331]
[1733867437839,0.12549,214.41,214.26,312.0]
[1733867438213,20.0,214.39,214.26,312.0]
[1733867438414,0.12549,214.37,214.26,312.0]
[1733867439318,0.12549,214.37,214.25,23.03146331]
[1733867439519,0.37647,214.37,214.25,23.03146331]
[1733867440042,0.37647,214.37,214.23,23.03146331]
[1733867441017,23.902374,214.34,214.23,23.03146331]
[1733867441232,23.902374,214.34,214.21,23.03146331]
[1733867442335,23.902374,214.34,214.25,23.03146331]
[1733867442934,23.902374,214.35,214.27,23.03146331]
[1733867444730,23.902374,214.35,214.25,23.03146331]
[1733867445642,23.902374,214.35,214.27,23.03146331]
[1733867450342,23.902374,214.35,214.25,23.73126044]
[1733867451229,23.902374,214.35,214.24,20.0]
[1733867451729,23.902374,214.33,214.21,14.37917869]
[1733867452128,0.12549,214.31,214.21,14.37917869]
[1733867452653,0.42553383,214.3,214.21,14.37917869]
[1733867452846,0.42553383,214.3,214.22,14.37917869]
[1733867455057,0.12549,214.29,214.22,14.37917869]
[1733867455237,0.12549,214.29,214.2,34.37917869]
[1733867455435,24.027864,214.29,214.18,14.37917869]
[1733867455639,24.027864,214.29,214.16,14.37917869]
[1733867455843,24.027864,214.27,214.16,14.37917869]
[1733867456044,23.902374,214.23,214.14,14.37917869]
[1733867456245,25.418374,214.23,214.12,14.37917869]
[1733867456442,0.12549,214.21,214.1,14.37917869]
[1733867456643,0.12549,214.21,214.1,28.75835769]
[1733867457067,0.12549,214.22,214.1,28.75835769]
[1733867457248,0.12549,214.22,214.06,8.30333361]
[1733867457249,24.027864,214.2,214.08,23.04020527]
[1733867458058,23.902374,214.16,214.08,23.04020527]
[1733867458369,23.902374,214.16,214.04,2.2119144]
[1733867458370,23.902374,214.12,214.04,23.60071967]
[1733867458745,23.902374,214.12,214.04,0.5605144]
[1733867460861,23.902374,214.1,214.04,0.5605144]
[1733867463780,1.5497,214.16,214.08,23.04020527]
[1733867464071,1.5497,214.16,214.07,23.04020527]
[1733867464649,1.5497,214.16,214.05,18.704526]
[1733867464855,1.5497,214.16,214.04,0.5605144]
[1733867465059,0.25098,214.1,214.04,0.5605144]
[1733867465248,0.25098,214.08,214.04,0.5605144]
[1733867465652,43.902374,214.05,214.04,0.5605144]
[1733867465870,23.902374,214.05,214.04,0.5605144]
[1733867466461,23.776884,214.05,214.04,0.5605144]
[1733867467676,6.4529,214.14,214.04,23.60071967]
[1733867467871,6.4529,214.14,214.07,312.0]
[1733867467872,1.5497,214.14,214.07,312.0]
[1733867468473,1.5497,214.14,214.04,0.5605144]
[1733867469186,0.12549,214.12,214.04,0.5605144]
[1733867469383,0.25098,214.12,214.04,0.5605144]
[1733867469590,23.902374,214.09,214.04,0.5605144]
[1733867469967,0.25098,214.08,214.04,0.5605144]
[1733867470162,44.027864,214.05,214.04,0.5605144]
[1733867470365,44.153354,214.05,214.04,0.5605144]
[1733867471669,0.12549,214.03,213.89,23.04020527]
[1733867471874,0.25098,214.01,213.89,23.04020527]
[1733867472082,0.25098,214.01,213.9,18.719015]
[1733867472284,0.12549,213.99,213.9,18.719015]
[1733867472584,0.12549,213.99,213.85,23.04020527]
[1733867472896,0.25098,214.0,213.88,23.04020527]
[1733867473409,0.12549,213.99,213.87,23.04020527]
[1733867473901,20.0,213.98,213.88,23.04020527]
[1733867474076,20.0,214.02,213.91,23.04020527]
[1733867474274,1.5497,214.04,213.93,23.04020527]
[1733867474474,1.5497,214.04,213.91,23.04020527]
[1733867474689,1.5497,214.04,213.93,312.0]
[1733867474893,1.5497,214.04,213.94,4.9032]
[1733867475099,0.25098,214.03,213.83,0.5605144]
[1733867475397,0.37647,214.0,213.83,23.60071967]
[1733867475589,0.12549,213.94,213.83,23.60071967]
[1733867475898,0.12549,213.91,213.83,0.5605144]
[1733867476102,0.12549,213.89,213.83,0.5605144]
[1733867476309,23.902374,213.89,213.83,0.5605144]
[1733867477694,23.776884,213.89,213.83,23.60071967]
[1733867478215,23.776884,213.89,213.84,312.0]
[1733867480894,0.12549,213.88,213.84,312.0]
[1733867481102,0.12549,213.88,213.83,0.5605144]
[1733867482290,0.25098,213.88,213.83,0.5605144]
[1733867483094,0.25098,213.88,213.74,10.0]
[1733867483095,0.25098,213.81,213.74,10.0]
[1733867483297,20.0,213.76,213.74,10.0]
[1733867483498,23.902374,213.75,213.74,10.0]
[1733867483894,23.776884,213.75,213.74,10.0]
[1733867484291,24.027864,213.75,213.74,10.0]
[1733867484611,23.776884,213.75,213.74,10.0]
[1733867484991,1.6288,213.8,213.74,10.0]
[1733867485188,23.776884,213.79,213.74,10.0]
[1733867485909,0.12549,213.78,213.74,10.0]
[1733867487615,0.12549,213.8,213.74,10.0]
[1733867488506,1.6288,213.86,213.74,10.0]
[1733867488699,1.6288,213.86,213.75,23.04020527]
[1733867488890,1.6288,213.86,213.74,33.04020527]
[1733867489097,4.9032,213.87,213.75,23.04020527]
[1733867489495,6.5387,213.98,213.86,23.04020527]
[1733867489695,6.5387,213.98,213.87,23.04020527]
[1733867489905,6.5387,213.98,213.81,6.1439]
[1733867490098,0.25098,213.97,213.81,29.18410527]
[1733867490586,15.0,213.95,213.81,23.04020527]
[1733867490792,0.25098,213.94,213.79,23.04020527]
[1733867490996,0.12549,213.93,213.75,11.6959]
[1733867491196,0.12549,213.93,213.79,23.04020527]
[1733867491403,0.12549,213.93,213.81,23.04020527]
[1733867491907,0.12549,213.93,213.83,23.04020527]
[1733867492409,0.12549,213.93,213.82,23.04020527]
[1733867493212,0.12549,213.93,213.83,23.04020527]
[1733867493392,0.12549,213.93,213.85,23.04020527]
[1733867493707,6.5387,213.98,213.86,23.04020527]
[1733867493912,6.5387,213.98,213.84,23.04020527]
[1733867494207,0.25098,213.97,213.85,23.04020527]
[1733867494705,20.0,213.95,213.87,23.04020527]
[1733867494912,23.776884,213.94,213.87,23.04020527]
[1733867495212,23.776884,213.94,213.87,335.04020527]
[1733867496007,23.776884,213.94,213.88,23.04020527]
[1733867497219,4.9032,214.03,213.93,23.04020527]
[1733867497402,1.6355,214.04,213.95,23.04020527]
[1733867497600,1.6355,214.04,213.94,23.04020527]
[1733867497805,0.12549,214.03,213.92,23.04020527]
[1733867497991,0.25098,214.03,213.89,23.04020527]
[1733867498609,0.25098,214.02,213.89,23.04020527]
[1733867498809,0.12549,214.01,213.9,23.04020527]
[1733867499208,0.12549,214.01,213.9,335.04020527]
[1733867499514,0.37647,214.02,213.92,23.04020527]
[1733867499694,0.12549,214.02,213.92,23.04020527]
[1733867499896,1.6355,214.04,213.95,23.04020527]
[1733867500103,0.25098,214.03,213.91,23.04020527]
[1733867500307,1.6355,214.04,213.94,23.04020527]
[1733867501010,23.902374,214.03,213.95,23.04020527]
[1733867502007,23.902374,214.03,213.94,23.04020527]
[1733867502217,23.902374,214.03,213.95,23.04020527]
[1733867502417,23.902374,214.03,213.96,23.04020527]
[1733867502998,23.902374,214.03,213.95,23.04020527]
[1733867503413,23.902374,214.03,213.87,6.1439]
[1733867503414,4.9032,214.08,213.99,23.04020527]
[1733867503714,1.6434,214.1,214.01,23.04020527]
[1733867504500,1.6434,214.1,214.02,23.04020527]
[1733867504892,70.11169372,215.71,214.05,23.04020527]
[1733867504893,1.6434,214.16,214.05,23.04020527]
[1733867505116,0.25098,214.15,214.04,23.04020527]
[1733867505299,0.25098,214.15,214.03,23.04020527]
[1733867505499,0.12549,214.15,214.04,23.04020527]
[1733867505700,0.12549,214.15,214.05,23.04020527]
[1733867505901,0.25098,214.15,214.05,23.04020527]
[1733867506124,0.12549,214.14,214.05,23.04020527]
[1733867506528,0.25098,214.14,214.03,23.04020527]
[1733867506699,1.6434,214.16,214.05,23.04020527]
[1733867506898,21.6434,214.16,214.06,23.04020527]
[1733867507715,21.6434,214.16,214.05,23.04020527]
[1733867507916,0.12549,214.14,214.05,23.04020527]
[1733867510326,0.12549,214.14,214.04,23.04020527]
[1733867510817,0.12549,214.14,214.05,23.04020527]
[1733867511125,0.37647,214.14,214.02,312.0]
[1733867511329,0.37647,214.14,214.02,23.04020527]
[1733867511529,0.37647,214.14,214.03,23.04020527]
[1733867511903,0.37647,214.14,214.04,23.04020527]
[1733867512104,23.776884,214.15,214.08,23.04020527]
[1733867512304,4.9032,214.19,214.1,23.04020527]
[1733867512521,4.9032,214.19,214.11,23.04020527]
[1733867512712,1.6434,214.21,214.13,23.04020527]
[1733867512913,1.6434,214.21,214.06,23.74061024]
[1733867512914,4.9032,214.24,214.14,23.04020527]
[1733867513125,1.6434,214.26,214.18,23.04020527]
[1733867513518,0.25098,214.28,214.18,24.57263592]
[1733867513732,0.25098,214.28,214.18,1.53243065]
[1733867513924,13.46756935,214.32,214.16,1.53243065]
[1733867514224,0.25098,214.29,214.11,1.53243065]
[1733867514532,0.25098,214.26,214.13,1.53243065]
[1733867515137,0.12549,214.22,214.17,1.53243065]
[1733867515431,0.12549,214.25,214.17,24.57263592]
[1733867515613,20.0,214.29,214.17,24.57263592]
[1733867516013,0.25098,214.3,214.17,24.57263592]
[1733867516432,0.25098,214.3,214.17,1.53243065]
[1733867516729,0.25098,214.3,214.09,18.2942]
[1733867516730,0.25098,214.24,214.13,24.57263592]
[1733867516932,24.027864,214.24,214.15,1.53243065]
[1733867517110,24.027864,214.24,214.15,24.57263592]
[1733867518216,23.902374,214.24,214.18,1.53243065]
[1733867518412,23.902374,214.24,213.99,1.53243065]
[1733867518413,20.0,214.16,213.99,1.53243065]
[1733867518629,0.25098,214.07,213.98,1.53243065]
[1733867518834,0.12549,214.06,213.96,1.53243065]
[1733867519142,0.12549,214.04,213.94,1.53243065]
[1733867519524,0.12549,214.04,213.96,1.53243065]
[1733867519721,0.12549,214.05,213.96,1.53243065]
[1733867520036,0.12549,214.05,213.93,29.58620527]
[1733867520037,0.12549,214.05,214.01,24.57263592]
[1733867520621,0.12549,214.05,214.0,1.53243065]
[1733867521532,0.12549,214.05,214.04,312.0]
[1733867522734,44.153354,214.03,213.89,1.53243065]
[1733867523045,44.153354,214.03,213.92,1.53243065]
[1733867523927,44.153354,214.03,213.92,24.57263592]
[1733867524835,44.153354,214.03,213.91,1.53243065]
[1733867525540,44.153354,214.03,214.0,312.0]
[1733867526555,44.153354,214.03,213.93,1.53243065]
[1733867526930,44.153354,214.03,213.95,1.53243065]
[1733867527352,24.153354,214.03,213.95,1.53243065]
[1733867527541,23.902374,214.03,213.97,1.53243065]
[1733867527739,0.12549,214.06,213.97,1.53243065]
[1733867528044,0.25098,214.0,213.86,1.53243065]
[1733867528362,0.25098,213.98,213.86,1.53243065]
[1733867528541,0.25098,213.98,213.88,1.53243065]
[1733867528745,0.25098,213.98,213.86,1.53243065]
[1733867528965,0.12549,213.97,213.86,1.53243065]
[1733867529257,0.12549,213.97,213.88,1.53243065]
[1733867530351,0.12549,213.97,213.86,1.53243065]
[1733867531241,0.12549,213.95,213.86,1.53243065]
[1733867531748,0.25098,213.92,213.81,1.53243065]
[1733867531961,23.902374,213.88,213.79,1.53243065]
[1733867532247,23.902374,213.88,213.77,1.53243065]
[1733867532248,0.25098,213.87,213.77,1.53243065]
[1733867532445,0.25098,213.87,213.79,1.53243065]
[1733867533125,21.95682,213.88,213.83,1.53243065]
[1733867534161,0.12549,213.87,213.79,1.53243065]
[1733867534565,0.12549,213.87,213.82,1.53243065]
[1733867535349,0.12549,213.87,213.79,1.53243065]
[1733867535548,1.0,213.83,213.82,1.53243065]
[1733867536751,1.0,213.83,213.82,24.57263592]
[1733867539233,1.0,213.83,213.82,1.53243065]
[1733867540234,1.0,213.83,213.8,1.53243065]
[1733867540755,23.776884,213.82,213.78,1.53243065]
[1733867541140,23.776884,213.82,213.8,1.53243065]
[1733867542163,1.0,213.83,213.8,1.53243065]
[1733867542337,1.0,213.83,213.82,1.53243065]
[1733867542844,1.91004084,213.95,213.82,1.53243065]
[1733867542845,23.902374,213.94,213.82,1.53243065]
[1733867543047,23.902374,213.9,213.84,1.53243065]
[1733867543251,2.76933584,213.96,213.87,1.53243065]
[1733867543471,1.0,213.97,213.87,1.53243065]
[1733867544139,0.25098,213.96,213.87,1.53243065]
[1733867545035,24.027864,213.96,213.87,1.53243065]
[1733867545527,24.027864,213.96,213.89,1.53243065]
[1733867545726,1.0,213.97,213.89,1.53243065]
[1733867545957,1.0,213.97,213.94,1.53243065]
[1733867546537,1.0,213.97,213.96,1.53243065]
[1733867546938,1.0,213.97,213.94,1.53243065]
[1733867547643,1.0,213.97,213.96,1.53243065]
[1733867548454,0.25098,214.04,213.96,1.53243065]
[1733867548955,0.12549,214.06,213.99,1.53243065]
[1733867549662,0.25098,214.1,213.99,1.53243065]
[1733867549968,0.9845,214.11,213.99,1.53243065]
[1733867550278,0.9845,214.11,214.01,1.53243065]
[1733867550452,24.027864,214.1,214.01,1.53243065]
[1733867551261,26.83024239,214.1,214.01,1.53243065]
[1733867551455,24.027864,214.1,214.01,1.53243065]
[1733867551657,0.12549,214.09,214.01,1.53243065]
[1733867552577,0.12549,214.09,214.03,1.53243065]
[1733867552865,0.9845,214.16,214.05,1.53243065]
[1733867553267,0.25098,214.15,214.05,1.53243065]
[1733867553475,0.9845,214.16,214.08,1.53243065]
[1733867553655,2.79624433,214.17,214.08,1.53243065]
[1733867553838,0.25098,214.16,214.08,1.53243065]
[1733867554040,0.9845,214.21,214.1,1.53243065]
[1733867555142,2.98747353,214.2,214.1,1.53243065]
[1733867556160,0.12549,214.17,214.1,1.53243065]
[1733867556353,0.9845,214.26,214.13,1.53243065]
[1733867556556,0.9845,214.26,214.15,1.53243065]
[1733867557159,2.84358712,214.24,214.15,1.53243065]
[1733867558056,15.0,214.3,214.15,1.53243065]
[1733867558057,0.12549,214.22,214.15,1.53243065]
[1733867558393,15.0,214.35,214.2,1.53243065]
[1733867558562,2.39300006,214.34,214.2,1.53243065]
[1733867558876,0.25098,214.34,214.2,1.53243065]
[1733867559044,0.25098,214.34,214.2,7.53723065]
[1733867559574,0.12549,214.33,214.2,7.53723065]
[1733867559882,2.85852621,214.37,214.24,1.53243065]
[1733867560444,0.5605144,214.37,214.24,1.53243065]
[1733867560946,0.5605144,214.37,214.28,1.53243065]
[1733867561163,0.25098,214.27,214.14,6.0048]
[1733867561339,0.25098,214.25,214.1,1.5627]
[1733867561549,15.25098,214.22,214.09,6.0048]
[1733867562183,0.12549,214.17,214.09,6.0048]
[1733867565667,0.12549,214.11,214.05,3.09513065]
[1733867565971,0.12549,214.11,214.05,1.5627]
[1733867568885,0.12549,214.11,214.01,1.53243065]
[1733867569857,0.12549,214.11,214.0,6.0048]
[1733867570888,0.37647,214.09,214.01,1.53243065]
[1733867571076,24.153354,214.09,214.01,1.53243065]
[1733867571276,0.25098,214.07,214.01,1.53243065]
[1733867571494,23.902374,214.07,214.04,1.53243065]
[1733867571664,24.20241592,214.06,214.04,1.53243065]
[1733867572689,0.42553192,214.06,214.04,1.53243065]
[1733867575383,2.38907542,214.2,214.1,1.53243065]
[1733867575571,0.25098,214.19,214.05,1.53243065]
[1733867575882,0.25098,214.19,214.03,1.53243065]
[1733867576380,24.153354,214.15,214.03,1.53243065]
[1733867576761,24.153354,214.15,214.05,1.53243065]
[1733867576762,0.37647,214.15,214.05,1.53243065]
[1733867576968,0.12549,214.12,214.05,1.53243065]
[1733867577790,3.33251795,214.23,214.11,1.53243065]
[1733867578094,22.83796871,214.2,214.12,1.53243065]
[1733867578473,0.12549,214.19,214.12,1.53243065]
[1733867578687,0.25098,214.19,214.12,1.53243065]
[1733867578991,24.027864,214.19,214.12,1.53243065]
[1733867579194,23.776884,214.15,214.12,1.53243065]
[1733867579398,2.34801795,214.23,214.15,1.53243065]
[1733867579580,0.25098,214.27,214.15,1.53243065]
[1733867580081,3.29113307,214.28,214.15,1.53243065]
[1733867580282,0.25098,214.27,214.15,1.53243065]
[1733867580477,0.12549,214.27,214.15,1.53243065]
[1733867580790,24.027864,214.27,214.15,1.53243065]
[1733867580999,0.12549,214.26,214.15,1.53243065]
[1733867581288,0.25098,214.23,214.15,1.53243065]
[1733867581498,0.12549,214.2,214.15,1.53243065]
[1733867581880,0.25098,214.21,214.15,1.53243065]
[1733867585293,0.12549,214.21,214.17,1.53243065]
[1733867585479,0.12549,214.21,214.15,1.53243065]
[1733867585905,0.12549,214.22,214.17,1.53243065]
[1733867587000,0.12549,214.19,214.15,1.53243065]
[1733867587202,24.027864,214.19,214.15,1.53243065]
[1733867587722,0.25098,214.18,214.11,1.53243065]
[1733867587876,23.902374,214.15,214.1,6.0048]
[1733867588206,0.12549,214.14,214.1,6.0048]
[1733867588393,0.25098,214.14,214.1,6.0048]
[1733867588594,0.12549,214.13,214.1,6.0048]
[1733867588986,0.12549,214.14,214.11,1.53243065]
[1733867589801,0.12549,214.14,214.1,6.0048]
[1733867590998,23.776884,214.15,214.12,1.53243065]
[1733867591983,23.776884,214.15,214.14,1.53243065]
[1733867594209,23.776884,214.15,214.12,1.53243065]
[1733867594383,0.5605144,214.37,214.24,1.53243065]
[1733867594697,0.5605144,214.37,214.3,1.53243065]
[1733867595190,0.5605144,214.37,214.32,1.53243065]
[1733867595384,0.5605144,214.37,214.34,1.53243065]
[1733867595702,0.5605144,214.37,214.36,1.53243065]
[1733867596903,0.5605144,214.37,214.34,1.53243065]
[1733867597095,0.5605144,214.37,214.36,1.53243065]
[1733867597303,0.5605144,214.37,214.35,1.53243065]
[1733867598509,0.12549,214.36,214.35,1.53243065]
[1733867598911,23.902374,214.36,214.35,1.53243065]
[1733867599394,23.902374,214.36,214.33,7.92873065]
[1733867599596,23.902374,214.36,214.35,1.53243065]
[1733867601313,0.5605144,214.37,214.35,1.53243065]
[1733867602207,0.25098,214.36,214.3,1.53243065]
[1733867602609,0.12549,214.35,214.3,1.53243065]
[1733867603398,0.12549,214.31,214.27,8.02103065]
[1733867603595,0.12549,214.31,214.29,1.53243065]
[1733867604113,0.12549,214.31,214.27,6.4886]
[1733867604494,0.12549,214.31,214.27,8.02103065]
[1733867604813,0.12549,214.31,214.29,1.53243065]
[1733867606011,0.12549,214.31,214.27,6.4886]
[1733867606514,0.12549,214.27,214.25,1.53243065]
[1733867608313,0.12549,214.27,214.23,1.53243065]
[1733867608613,24.153354,214.27,214.23,1.53243065]
[1733867610901,23.902374,214.27,214.25,1.53243065]
[1733867611104,0.5605144,214.37,214.3,1.53243065]
[1733867611616,0.25098,214.36,214.3,1.53243065]
[1733867612201,0.5605144,214.37,214.3,1.53243065]
[1733867613014,0.12549,214.36,214.3,1.53243065]
[1733867613529,0.12549,214.32,214.3,1.53243065]
[1733867613830,23.902374,214.32,214.3,1.53243065]
[1733867614741,0.12549,214.3,214.28,1.53243065]
[1733867616313,0.12549,214.31,214.3,1.53243065]
[1733867617419,0.12549,214.31,214.23,22.99459359]
[1733867617420,0.12549,214.31,214.28,1.53243065]
[1733867617611,0.12549,214.31,214.3,1.53243065]
[1733867619930,9.10013318,214.46,214.34,1.53243065]
[1733867620131,20.0,214.43,214.36,1.53243065]
[1733867621529,0.25098,214.36,214.33,1.53243065]
[1733867621718,24.027864,214.36,214.33,1.53243065]
[1733867622624,0.12549,214.35,214.33,1.53243065]
[1733867624249,0.12549,214.35,214.33,7.61813065]
[1733867624539,0.5605144,214.37,214.33,7.61813065]
[1733867624715,0.5605144,214.37,214.33,1.53243065]
[1733867624920,0.4304944,214.37,214.31,1.53243065]
[1733867625638,0.4304944,214.37,214.33,1.53243065]
[1733867626043,0.12549,214.36,214.33,1.53243065]
[1733867626340,0.4304944,214.37,214.35,1.53243065]
[1733867627718,0.12549,214.36,214.35,1.53243065]
[1733867627919,24.153354,214.36,214.32,1.53243065]
[1733867628125,24.153354,214.36,214.3,1.53243065]
[1733867628335,0.4304944,214.37,214.28,7.61813065]
[1733867628336,24.027864,214.32,214.28,7.61813065]
[1733867628642,20.0,214.29,214.25,1.53243065]
[1733867628961,23.902374,214.28,214.25,1.53243065]
[1733867630032,23.902374,214.28,214.27,1.53243065]
[1733867632329,0.12549,214.27,214.25,1.53243065]
[1733867632640,43.902374,214.26,214.25,1.53243065]
[1733867633513,0.4304944,214.37,214.32,1.53243065]
[1733867633713,0.25098,214.36,214.32,1.53243065]
[1733867634929,0.12549,214.35,214.32,1.53243065]
[1733867635446,43.902374,214.33,214.32,1.53243065]
[1733867636223,24.027864,214.32,214.3,1.53243065]
[1733867637447,24.027864,214.32,214.28,1.53243065]
[1733867640259,24.027864,214.28,214.26,1.53243065]
[1733867640449,23.902374,214.24,214.23,1.53243065]
[1733867642053,23.902374,214.24,214.21,1.53243065]
[1733867642254,20.0,214.21,214.19,1.53243065]
[1733867642426,23.902374,214.2,214.17,1.53243065]
[1733867642629,20.0,214.18,214.17,1.53243065]
[1733867642840,43.902374,214.18,214.17,1.53243065]
[1733867643246,23.902374,214.17,214.15,1.53243065]
[1733867646267,2.23088286,214.23,214.21,1.53243065]
[1733867646570,7.29819306,214.31,214.21,1.53243065]
[1733867646733,0.25098,214.3,214.23,1.53243065]
[1733867647666,0.12549,214.29,214.23,1.53243065]
[1733867647863,0.12549,214.25,214.21,1.53243065]
[1733867648157,23.902374,214.22,214.21,1.53243065]
[1733867650661,23.902374,214.22,214.14,0.70022942]
[1733867650662,22.2669157,214.31,214.24,1.53243065]
[1733867650866,7.29819306,214.34,214.26,1.53243065]
[1733867651439,9.54893825,214.34,214.28,1.53243065]
[1733867651869,0.25098,214.33,214.28,1.53243065]
[1733867652076,0.12549,214.33,214.28,1.53243065]
[1733867652650,0.12549,214.32,214.28,1.53243065]